Cogmind - Beta 10.2 @@@ ROGUE MODE // 2021.08.16 @ 14:04:01 Player: Gilgameshx13 Result: Self-destructed Performance ------------- Evolutions (1) 500 Regions Visited (3) 600 Robots Destroyed (13) 65 Value Destroyed (335) 335 Prototype IDs (1) 20 Alien Tech Used (0) 0 Bonus (0) 0 TOTAL SCORE: 1520 Bonus ------- None Cogmind --------- Core Integrity 173/400 Matter 230/300 Energy 100/100 System Corruption 0% Temperature Cool (0) Movement Core (300) Ox5 Location -9/Mines Parts ------- > --- POWER (1) -------- (None) > --- PROPULSION (2) --- Improved Flight Unit > --- UTILITY (4) ------ Large Storage Unit Signal Interpreter > --- WEAPON (2) ------- (None) > --- INVENTORY (10) --- Light Ion Engine Aluminum Leg Wheel Wheel Compact Wheel Shield Generator Autogun Autogun Mini Grenade Launcher Peak State ------------ > --- POWER ------------ Ion Engine > --- PROPULSION ------- Aluminum Leg Improved Flight Unit > --- UTILITY ---------- Large Storage Unit Signal Interpreter > --- WEAPON ----------- Autogun > --- INVENTORY -------- Light Ion Engine Wheel Wheel Compact Wheel Hover Unit Shield Generator Autogun Autogun Mini Grenade Launcher [Rating: 10] Favorites ----------- Power Ion Engine Engine Ion Engine Propulsion Aluminum Leg Leg Aluminum Leg Hover Unit Hover Unit Flight Unit Improved Flight Unit Utility Signal Interpreter Storage Large Storage Unit Processor Signal Interpreter Protection Light Armor Plating Weapon Medium Laser Energy Gun Medium Laser Ballistic Gun Autogun Launcher Mini Grenade Launcher Build | -11 -10 -9 -9 ------- Run | Scr Mat Mat Min Slots Evolved 2 | . . 2 . Power . | . . . . Propulsion . | . . . . Utility 2 | . . 2 . Weapon . | . . . . Parts Attached 15 | 6 3 4 2 Power 1 | 1 . . . Engine 1 | 1 . . . Core . | . . . . Reactor . | . . . . Propulsion 4 | 2 . . 2 Treads . | . . . . Leg 2 | 2 . . . Wheel . | . . . . Hover 1 | . . . 1 Flight 1 | . . . 1 Utility 4 | 1 1 2 . Device . | . . . . Storage 2 | 1 . 1 . Processor 1 | . 1 . . Hackware . | . . . . Protection 1 | . . 1 . Artifact . | . . . . Weapon 6 | 2 2 2 . Energy Gun 2 | 1 1 . . Energy Cannon . | . . . . Ballistic Gun 3 | 1 . 2 . Ballistic Cannon . | . . . . Launcher 1 | . 1 . . Special Weapon . | . . . . Impact Weapon . | . . . . Slashing Weapon . | . . . . Piercing Weapon . | . . . . Special Melee Weapon . | . . . . Unidentified Prototypes 1 | . . . 1 Parts Lost 8 | . 2 1 5 Power 1 | . . . 1 Propulsion 2 | . . 1 1 Utility 1 | . . . 1 Weapon 4 | . 2 . 2 Highest Loss Streak 5 | . 1 1 5 Average Slot Usage (%) 78 | . 82 77 76 Engine 12 | . 14 11 11 Leg 18 | . 28 15 10 Storage 12 | . 14 11 11 Processor 7 | . . 11 11 Protection 5 | . . 7 10 Energy Gun 9 | . 7 11 10 Ballistic Gun 10 | . 11 7 11 Launcher 3 | . 5 3 . Naked Turns . | . . . . Heaviest Build 29 | 11 12 29 29 Greatest Support 20 | 20 20 20 10 Greatest Overweight (x) 3 | . . 2 3 Average Overweight (x) . | . . 1 2 Largest Inventory Capacity 10 | 6 6 10 10 Average Capacity 8 | 4 6 9 10 Most Carried 10 | 4 6 9 10 Average Carried 6 | 2 4 7 9 Final Capacity 10 | 6 6 10 10 Final Carried 9 | 4 5 9 9 Class Distribution -------------------- 100% | Mutant Dominant Class ---------------- Mutant | -10/Materials Mutant | -9/Materials Mutant | -9/Mines Resources | -11 -10 -9 -9 ----------- Run | Scr Mat Mat Min Matter Collected 351 | 158 82 40 71 Remotely . | . . . . Salvage Created 310 | . 200 110 . Parts 20 | . 16 4 . Haulers Intercepted . | . . . . Recyclers Shooed 1 | . 1 . . Parts Field Recycled . | . . . . Retrieved Matter . | . . . . Parts Self-Destructed . | . . . . Prevented . | . . . . Kills | -11 -10 -9 -9 ------- Run | Scr Mat Mat Min Combat Hostiles Destroyed 11 | . 8 3 . Guns 6 | . 3 3 . AOE 5 | . 5 . . Classes Destroyed 3 | . 3 . . Builder 2 | . 2 . . Swarmer 3 | . 3 . . Grunt 8 | . 5 3 . Best Kill Streak 4 | . 4 3 . Combat Bots Only 3 | . 3 3 . Max Kills in Single Turn 2 | . 2 1 . Gunslinging . | . . . . Exploded 2 | . 2 . . Melee . | . . . . Uniques/NPCs Destroyed . | . . . . Combat | -11 -10 -9 -9 -------- Run | Scr Mat Mat Min Damage Taken 1084 | . 347 184 553 Core 335 | . 108 . 227 Absorbed by Shields . | . . . . Core Remaining (%) 78 | 100 56 . . Volleys Fired 24 | . 16 8 . Largest 2 | . 2 2 . Hottest 73 | . 60 73 . Shots Fired 43 | . 27 16 . Gun 36 | . 20 16 . Cannon . | . . . . Launcher 7 | . 7 . . Special . | . . . . Kinetic 21 | . 13 8 . Thermal 15 | . 7 8 . Explosive 7 | . 7 . . Electromagnetic . | . . . . Robot Hit Streak 11 | . 8 11 . Robot Miss Streak 3 | . 3 1 . Penetration Max . | . . . . Secondary Targets 1 | . 1 . . Max Gunslinging Chain 1 | . 1 . . Shots Hit Robots 31 | . 17 14 . Core Hits 20 | . 15 5 . Critical Hits . | . . . . Critical Kills . | . . . . Critical Parts Destroyed . | . . . . Melee Attacks . | . . . . Impact . | . . . . Slashing . | . . . . Piercing . | . . . . Sneak Attacks . | . . . . Combat Hostiles . | . . . . Follow-up Attacks . | . . . . Damage Inflicted 867 | . 674 191 2 Guns 299 | . 108 191 . Cannons . | . . . . Explosions 566 | . 566 . . Melee . | . . . . Ramming 2 | . . . 2 Kinetic 143 | . 40 103 . Thermal 156 | . 68 88 . Explosive 566 | . 566 . . Electromagnetic . | . . . . Impact . | . . . . Slashing . | . . . . Piercing . | . . . . Highest Corruption . | . . . . Average Corruption . | . . . . Corruption Purged . | . . . . Overload Shots . | . . . . Overflow Damage 25 | . 25 . . Projectiles . | . . . . Explosions 25 | . 25 . . Melee . | . . . . Knockbacks . | . . . . Impact . | . . . . Kinetic . | . . . . Secondary . | . . . . Self-Inflicted Damage 34 | . 33 . 1 Shots 1 | . 1 . . Rammed 1 | . . . 1 Targets Rammed 1 | . . . 1 Kicked . | . . . . Crushed . | . . . . Highest Temperature 212 | . 50 212 . Average Temperature 67 | . 15 110 . Received Heat Transfer 255 | . 150 105 . Siege Activations . | . . . . Robots Corrupted . | . . . . Combat Hostiles . | . . . . Parts Fried . | . . . . Impact Corruptions . | . . . . Robots Melted . | . . . . Combat Hostiles . | . . . . Parts Melted 1 | . . 1 . Heat Transferred 409 | . 150 259 . Parts Sabotaged . | . . . . Parts Stolen . | . . . . Parts Stripped . | . . . . Power Chain Reactions . | . . . . Missiles Intercepted . | . . . . Alert | -11 -10 -9 -9 ------- Run | Scr Mat Mat Min Peak Influence 245 | . 245 223 86 Initial 103 | . . 103 86 Average 113 | . 120 180 84 Maximum Alert Level 1 | . 1 1 . Low Security (%) 77 | 100 73 47 100 Level 1 22 | . 26 53 . Level 2 . | . . . . Level 3 . | . . . . Level 4 . | . . . . Level 5 . | . . . . High Security . | . . . . Max Security . | . . . . Squads Dispatched 2 | . 2 . . Investigation . | . . . . Extermination . | . . . . Reinforcement 2 | . 2 . . Assault . | . . . . Garrison . | . . . . Intercept . | . . . . Construction Impeded . | . . . . Haulers Reinforced . | . . . . Stealth | -11 -10 -9 -9 --------- Run | Scr Mat Mat Min Distress Signals 1 | . . 1 . Communications Jammed . | . . . . Distress Signals . | . . . . Times Spotted 25 | . 14 6 5 Peak Tracking Total 9 | . 4 4 9 Tactical Retreats 2 | . 1 1 . Traps | -11 -10 -9 -9 ------- Run | Scr Mat Mat Min Traps Triggered . | . . . . Indirectly . | . . . . Trap Hack Attempts . | . . . . Triggered . | . . . . Disarmed . | . . . . Reprogrammed . | . . . . Reused . | . . . . Traps Extracted . | . . . . Installed . | . . . . Triggered . | . . . . Machines | -11 -10 -9 -9 ---------- Run | Scr Mat Mat Min Machines Disabled 1 | . 1 . . Max in Single Turn 1 | . 1 . . Machines Sabotaged . | . . . . Garrisons Compromised . | . . . . Overloaded Fab Kills . | . . . . Fab Network Shutdowns . | . . . . Hacking | -11 -10 -9 -9 --------- Run | Scr Mat Mat Min Machines Accessed . | . . . . Terminals . | . . . . Fabricators . | . . . . Repair Stations . | . . . . Recycling Units . | . . . . Scanalyzers . | . . . . Garrison Access . | . . . . Total Hacks . | . . . . Successful . | . . . . Failed . | . . . . Catastrophic . | . . . . Database Lockouts . | . . . . Manual . | . . . . Terminals . | . . . . Fabricators . | . . . . Repair Stations . | . . . . Recycling Units . | . . . . Scanalyzers . | . . . . Garrison Access . | . . . . Terminal Hacks . | . . . . Fabricator Hacks . | . . . . Repair Station Hacks . | . . . . Recycling Unit Hacks . | . . . . Scanalyzer . | . . . . Garrison Access Hacks . | . . . . Unauthorized Hacks . | . . . . Terminals . | . . . . Fabricators . | . . . . Repair Stations . | . . . . Recycling Units . | . . . . Scanalyzers . | . . . . Garrison Access . | . . . . Data Cores Recovered . | . . . . Used . | . . . . Hacking Detections . | . . . . Full Trace Events . | . . . . Feedback Events . | . . . . Feedback Blocked . | . . . . Robot Schematics Acquired . | . . . . Robots Built . | . . . . Matter . | . . . . Time . | . . . . Total Robot Build Rating . | . . . . Part Schematics Acquired . | . . . . Parts Built . | . . . . Matter . | . . . . Time . | . . . . Total Part Build Rating . | . . . . Parts Repaired . | . . . . Time . | . . . . Parts Recycled . | . . . . Recycled Matter . | . . . . Retrieved Matter . | . . . . Retrieved Components . | . . . . Parts Scanalyzed . | . . . . Part Schematics Acquired . | . . . . Parts Damaged . | . . . . Bothacking | -11 -10 -9 -9 ------------ Run | Scr Mat Mat Min Used RIF Installer . | . . . . Robots Hacked . | . . . . Non-combat . | . . . . Combat . | . . . . Robot Hacks Applied . | . . . . Relay Couplers Released . | . . . . Robots Rewired . | . . . . Allies Hacked . | . . . . Hacks Repelled . | . . . . Allies | -11 -10 -9 -9 -------- Run | Scr Mat Mat Min Total Allies . | . . . . Largest Group . | . . . . Highest-Rated Group . | . . . . Highest-Rated Ally . | . . . . Total Orders . | . . . . Ally Attacks . | . . . . Total Damage . | . . . . Kills . | . . . . Allies Corrupted . | . . . . Allies Melted . | . . . . Intel | -11 -10 -9 -9 ------- Run | Scr Mat Mat Min Robot Analysis Total . | . . . . Derelict Logs Recovered . | . . . . Drone Launches . | . . . . Drone Recoveries . | . . . . Exploration | -11 -10 -9 -9 ------------- Run | Scr Mat Mat Min Turns Passed 773 | 75 259 200 239 Spaces Moved 469 | 63 177 101 128 Core 23 | 23 . . . Treads . | . . . . Legs 442 | 40 177 101 124 Wheels . | . . . . Hover 3 | . . . 3 Flight 1 | . . . 1 Fastest Speed 50 | 50 120 120 180 Average Speed 143 | 94 120 164 181 Slowest Speed 255 | 120 120 180 255 Overloaded Moves . | . . . . Propulsion Burnouts . | . . . . Robots Hopped . | . . . . Cave-ins Triggered . | . . . . Exploration Rate (%) 20 | 4 32 11 33 Regions Visited 3 Branch Regions 1 Pre-discovered Areas . | . . . . Known Exits Taken 2 | . 1 1 . Unknown Exits Taken 1 | 1 . . . Scrap Searched 1 | . . . 1 Spaces Dug . | . . . . Terrain Destroyed 52 | . 52 . . Melee . | . . . . Projectile . | . . . . AOE 52 | . 52 . . Terrain Rammed . | . . . . Walls Destroyed . | . . . . Machines Disabled . | . . . . Actions | -11 -10 -9 -9 --------- Run | Scr Mat Mat Min Total 528 | 78 199 119 132 Wait . | . . . . Move 466 | 62 176 100 128 Hop . | . . . . Pick Up 21 | 10 4 6 1 Fast Attach . | . . . . Attach 11 | 6 3 1 1 Detach . | . . . . Swap 4 | . . 3 1 Drop 1 | . . 1 . Fire 24 | . 16 8 . Melee . | . . . . Ram . | . . . . Kick 1 | . . . 1 Crush . | . . . . Escape Stasis . | . . . . Rewire . | . . . . Trap . | . . . . Miscellaneous . | . . . . Route ------- -11/Scrapyard -10/Materials -9/Materials -9/Mines History --------- Turn | Location | Event 8 | -11/Scrapyard | Discovered new exit (range 15) 76 | -11/Scrapyard | Entered Materials 303 | -10/Materials | Discovered new exit (range 11) 317 | -10/Materials | Build established: Mutant 334 | -10/Materials | Identified exit to Materials 335 | -10/Materials | Entered another Materials area 335 | -9/Materials | Evolved 2 slots: Utility x2 500 | -9/Materials | Discovered new exit (range 16) 533 | -9/Materials | Identified exit to Mines 535 | -9/Materials | Entered Mines 732 | -9/Mines | Assembled infested the area 773 | -9/Mines | Core integrity fell below 50% 774 | -9/Mines | Self-destructed Last Messages --------------- HV Slug penetrates as-38961. as-38961 destroyed. Med. Laser destroyed. Lgt. Armor Plating destroyed. HV Slug penetrates as-14071. as-14071 suffers critical hit. as-14071 destroyed. The unstable cave ceiling collapses. Identified Imp. Flight Unit. U-05 Engineer lays Concrete. U-05 Engineer builds a Wall. The unstable cave ceiling collapses. U-05 Engineer lays Concrete. The unstable cave ceiling collapses. U-05 Engineer lays Concrete. The unstable cave ceiling collapses. Autogun destroyed. U-05 Engineer builds a Wall. Hover Unit destroyed. Ion Engine destroyed. Map ----- +----------------------------------------------------+ | ?????????????????????# #?## #????# | | ?????????????????????# #??###### #???# | | ?????????????????????# #???????## #?????? """ " | | ?????????????????????# #????????# #?????????" " | | ?????????????????????# #???????? ##?????????" " | | ?????????????????????# #???????? ##????????? | | ?????????????????????# #???????? #?????????""" " | | ?????????????????????# #???????? ?????????""" " | | ????????# ??????????# #???????? ??????????"" " | | ????????# ?????????# #???????? ???????????? | | ?????????# ????????# #????????# ???????????? | | ???????### ??????# #?????????# ????????????## | | ??????? ?????# #??????????#?????????????? | | ?????? #????# #????????????????????????? | | ?????? ###?# ##???????????????????????? | | ????? ## ###??????????????????????? | | ????? ! #u #??????????????????????? | | ?????# % ####???????????????????? | | ???????# ## d #???????????????????? | | ?????# ???## d ##??????????????????? | | ??????### #? ????## ##?????????????????? | | ?????????????# ??# #?????????????????? | | ??????????????# # ##?????????????????? | | ??????????????# #?????????????????? | | ??????????????# #?????????????????? | | ??????????????# # @ #?????????????????? | | ?????????????# ?## ##?????????????????? | | ?????????????# ????# #??????????????????? | | ?????????????# ?????## ##??????????????????? | | ?????????????????????#; ##???????????????????? | | ?????????????????????## ##????????????????????? | | ?????????????????????? ;?????????????????????? | | ?????????????????????? ?????????????????????? | | ????????????????????? %!%????????????????????? | | ?????????????????????# |%=????????????????????? | | ?????????????????????######!%%???????????????????? | | ???????????????????????????# ????????????????????? | | ????????????????????????????#????????????????????? | | ?????????????????????????????????????????????????? | | ?????????????????????????????????????????????????? | | ?????????????????????????????????????????????????? | | ?????????????????????????????????????????????????? | | ?????????????????????????????????????????????????? | | ?????????????????????????????????????????????????? | | ?????????????????????????????????????????????????? | | ?????????????????????????????????????????????????? | | ?????????????????????????????????????????????????? | | ?????????????????????????????????????????????????? | | ?????????????????????????????????????????????????? | | ?????????????????????????????????????????????????? | +----------------------------------------------------+ Best States ------------- Heat Dissipation 28 Energy Generation 10 Energy Capacity 250 Matter Stores 226 Matter Capacity 300 Sight Range 16 Terrain Scan Density 10 Armor Coverage 150 Evasion (%) 50 Item Schematics ----------------- None Robot Schematics ------------------ None Fabricated ------------ Nothing Alien Tech Used ----------------- None Achievements -------------- None Challenges ------------ None Game ------ Seed ShockNuclearDisintegrator Manual? 0 Play Time 00:06:15 Cumulative 17.9 hours Start 2021.08.16 @ 13:59:02 End 2021.08.16 @ 14:04:01 Sessions 1 Manual Loads 0 Difficulty Rogue Special Mode None Game No. 42 Rogue 22 Adventurer 20 Explorer 0 Win Type - Total 1 Types 1/0/0/0/0/0/0/0/0 Lore% 18 Gallery% 40 Achievement% 27 Wizard Run 0 Options --------- ASCII 0 Keyboard 0 Movement Arrows Keybinds 0 Fullscreen 1 Font 18/SmallcapsGlow Map View 76x50 Tactical HUD 0 Map Filters NONE Filters NONE Steam 1 RUN: 80bbca7b-f71c-487b-a5d4-00bc33d2347f